[Event "Titled Tuesday Blitz March 07 Late 2023"]
[White "Martinez Alcantara, Jose Eduardo"]
[Black "Fedoseev, Vladimir"]
[WhiteFideId "3805662"]
[BlackFideId "24130737"]
[WhiteElo "2712"]
[BlackElo "2752"]
[Result "1-0"]
[Round "06"]
[TimeControl "180+2"]
[Date "2023.03.07"]
[WhiteClock "0:00:11"]
[BlackClock "0:00:01"]

1. e4 {[%clk 0:03:00]}  c5 {[%clk 0:02:59]} 2. Nf3 {[%clk 0:02:56]}  d6 {[%clk 0:02:59]} 3. c3 {[%clk 0:02:56]}  Nf6 {[%clk 0:02:58]} 4. h3 {[%clk 0:02:57]}  Bd7 {[%clk 0:02:52]} 5. Bd3 {[%clk 0:02:57]}  Nc6 {[%clk 0:02:44]} 6. Qe2 {[%clk 0:02:57]}  g5 {[%clk 0:02:35]} 7. Bc4 {[%clk 0:02:49]}  g4 {[%clk 0:02:32]} 8. hxg4 {[%clk 0:02:50]}  Bxg4 {[%clk 0:02:32]} 9. d3 {[%clk 0:02:51]}  e6 {[%clk 0:02:21]} 10. Bf4 {[%clk 0:02:47]}  a6 {[%clk 0:02:17]} 11. Nbd2 {[%clk 0:02:45]}  Na5 {[%clk 0:02:13]} 12. a4 {[%clk 0:02:11]}  Be7 {[%clk 0:02:07]} 13. Ba2 {[%clk 0:02:09]}  b5 {[%clk 0:02:03]} 14. d4 {[%clk 0:01:58]}  cxd4 {[%clk 0:02:00]} 15. cxd4 {[%clk 0:01:59]}  Nc6 {[%clk 0:01:58]} 16. Qe3 {[%clk 0:01:49]}  Nb4 {[%clk 0:01:37]} 17. Bb3 {[%clk 0:01:49]}  Rc8 {[%clk 0:01:27]} 18. O-O {[%clk 0:01:48]}  Bh5 {[%clk 0:01:03]} 19. Nh2 {[%clk 0:01:43]}  Bg6 {[%clk 0:00:50]} 20. axb5 {[%clk 0:01:43]}  axb5 {[%clk 0:00:50]} 21. Bh6 {[%clk 0:01:35]}  Qb6 {[%clk 0:00:46]} 22. Rfc1 {[%clk 0:01:31]}  Kd7 {[%clk 0:00:44]} 23. Bg5 {[%clk 0:01:19]}  Rxc1+ {[%clk 0:00:39]} 24. Rxc1 {[%clk 0:01:19]}  h6 {[%clk 0:00:25]} 25. Bxf6 {[%clk 0:01:09]}  Bxf6 {[%clk 0:00:23]} 26. Nhf3 {[%clk 0:01:10]}  Rc8 {[%clk 0:00:17]} 27. Rc3 {[%clk 0:01:09]}  Na6 {[%clk 0:00:06]} 28. Qxh6 {[%clk 0:00:52]}  Bxd4 {[%clk 0:00:05]} 29. Bxe6+ {[%clk 0:00:52]}  fxe6 {[%clk 0:00:02]} 30. Rxc8 {[%clk 0:00:47]}  Bxf2+ {[%clk 0:00:02]} 31. Kf1 {[%clk 0:00:48]}  Kxc8 {[%clk 0:00:02]} 32. Qxg6 {[%clk 0:00:48]}  Nc7 {[%clk 0:00:03]} 33. Qf6 {[%clk 0:00:29]}  Be3 {[%clk 0:00:03]} 34. Qc3 {[%clk 0:00:29]}  b4 {[%clk 0:00:02]} 35. Qd3 {[%clk 0:00:26]}  Bf4 {[%clk 0:00:03]} 36. Nc4 {[%clk 0:00:24]}  Qc5 {[%clk 0:00:03]} 37. b3 {[%clk 0:00:25]}  d5 {[%clk 0:00:04]} 38. exd5 {[%clk 0:00:23]}  Nxd5 {[%clk 0:00:03]} 39. Nd4 {[%clk 0:00:20]}  Nc7 {[%clk 0:00:02]} 40. Qe4 {[%clk 0:00:17]}  Bg3 {[%clk 0:00:02]} 41. Ke2 {[%clk 0:00:12]}  e5 {[%clk 0:00:01]} 42. Nf5 {[%clk 0:00:09]}  Qf2+ {[%clk 0:00:01]} 43. Kd1 {[%clk 0:00:10]}  Bf4 {[%clk 0:00:01]} 44. Nfd6+ {[%clk 0:00:11]} 1-0


[Site "https://www.chess.com"]

[Event "Titled Tuesday Blitz March 07 Late 2023"]
[White "Krzyzanowski, Marcin"]
[Black "Nakamura, Hikaru"]
[WhiteFideId "1132199"]
[BlackFideId "2016192"]
[WhiteElo "2471"]
[BlackElo "2879"]
[Result "0-1"]
[Round "06"]
[TimeControl "180+2"]
[Date "2023.03.07"]
[WhiteClock "0:00:02"]
[BlackClock "0:01:03"]

1. e4 {[%clk 0:03:00]}  e5 {[%clk 0:02:54]} 2. Nf3 {[%clk 0:03:00]}  Nc6 {[%clk 0:02:55]} 3. Nc3 {[%clk 0:03:00]}  Nge7 {[%clk 0:02:51]} 4. d4 {[%clk 0:02:57]}  exd4 {[%clk 0:02:51]} 5. Nxd4 {[%clk 0:02:58]}  Nxd4 {[%clk 0:02:52]} 6. Qxd4 {[%clk 0:02:58]}  Nc6 {[%clk 0:02:53]} 7. Qd3 {[%clk 0:02:51]}  Bc5 {[%clk 0:02:51]} 8. Bd2 {[%clk 0:02:48]}  d6 {[%clk 0:02:42]} 9. Qg3 {[%clk 0:02:37]}  O-O {[%clk 0:02:37]} 10. O-O-O {[%clk 0:02:36]}  f5 {[%clk 0:02:37]} 11. Bg5 {[%clk 0:02:28]}  Qe8 {[%clk 0:02:23]} 12. Bd3 {[%clk 0:02:14]}  Ne5 {[%clk 0:02:18]} 13. Bb5 {[%clk 0:01:57]}  c6 {[%clk 0:02:16]} 14. Ba4 {[%clk 0:01:57]}  Ng4 {[%clk 0:01:57]} 15. Bb3+ {[%clk 0:01:14]}  Kh8 {[%clk 0:01:56]} 16. Rhf1 {[%clk 0:01:02]}  fxe4 {[%clk 0:01:51]} 17. Bf4 {[%clk 0:00:59]}  d5 {[%clk 0:01:47]} 18. h3 {[%clk 0:00:47]}  Nf6 {[%clk 0:01:43]} 19. Be3 {[%clk 0:00:22]}  Qe7 {[%clk 0:01:33]} 20. Bxc5 {[%clk 0:00:20]}  Qxc5 {[%clk 0:01:33]} 21. Ne2 {[%clk 0:00:19]}  a5 {[%clk 0:01:31]} 22. a4 {[%clk 0:00:17]}  Bd7 {[%clk 0:01:30]} 23. Nf4 {[%clk 0:00:16]}  Rae8 {[%clk 0:01:30]} 24. Rfe1 {[%clk 0:00:15]}  b5 {[%clk 0:01:25]} 25. c3 {[%clk 0:00:14]}  bxa4 {[%clk 0:01:23]} 26. Bxa4 {[%clk 0:00:15]}  Qc4 {[%clk 0:01:15]} 27. Rd4 {[%clk 0:00:14]}  Qa2 {[%clk 0:01:11]} 28. Bc2 {[%clk 0:00:14]}  Rb8 {[%clk 0:01:11]} 29. b3 {[%clk 0:00:14]}  c5 {[%clk 0:01:03]} 30. Rd2 {[%clk 0:00:07]}  Qa1+ {[%clk 0:01:01]} 31. Bb1 {[%clk 0:00:05]}  Rxb3 {[%clk 0:01:02]} 32. Rc2 {[%clk 0:00:01]}  Rxb1+ {[%clk 0:01:02]} 33. Kd2 {[%clk 0:00:02]}  Rxe1 {[%clk 0:01:03]} 0-1


[Site "https://www.chess.com"]

[Event "Titled Tuesday Blitz March 07 Late 2023"]
[White "Duda, Jan-Krzysztof"]
[Black "Real_OceanStorm"]
[WhiteFideId "1170546"]
[WhiteElo "2790"]
[BlackElo "2789"]
[Result "0-1"]
[Round "06"]
[TimeControl "180+2"]
[Date "2023.03.07"]
[WhiteClock "0:00:01"]
[BlackClock "0:00:02"]

1. c3 {[%clk 0:03:00]}  d5 {[%clk 0:02:54]} 2. d4 {[%clk 0:03:01]}  Nf6 {[%clk 0:02:55]} 3. Bf4 {[%clk 0:03:01]}  c6 {[%clk 0:02:55]} 4. e3 {[%clk 0:03:01]}  g6 {[%clk 0:02:55]} 5. h3 {[%clk 0:03:01]}  Bg7 {[%clk 0:02:55]} 6. Nf3 {[%clk 0:03:00]}  O-O {[%clk 0:02:56]} 7. Be2 {[%clk 0:03:00]}  c5 {[%clk 0:02:50]} 8. O-O {[%clk 0:03:00]}  Nbd7 {[%clk 0:02:50]} 9. a4 {[%clk 0:02:59]}  b6 {[%clk 0:02:50]} 10. Nbd2 {[%clk 0:02:53]}  Bb7 {[%clk 0:02:42]} 11. b4 {[%clk 0:02:52]}  Ne4 {[%clk 0:02:37]} 12. Qb3 {[%clk 0:02:46]}  Nxd2 {[%clk 0:02:19]} 13. Nxd2 {[%clk 0:02:46]}  e5 {[%clk 0:02:19]} 14. dxe5 {[%clk 0:02:46]}  c4 {[%clk 0:02:19]} 15. Qc2 {[%clk 0:02:45]}  Nxe5 {[%clk 0:02:19]} 16. Nf3 {[%clk 0:02:31]}  Nxf3+ {[%clk 0:02:15]} 17. Bxf3 {[%clk 0:02:32]}  Qe7 {[%clk 0:01:49]} 18. Rfd1 {[%clk 0:02:30]}  Rad8 {[%clk 0:01:44]} 19. Bg3 {[%clk 0:02:20]}  h5 {[%clk 0:01:30]} 20. b5 {[%clk 0:01:47]}  Qf6 {[%clk 0:01:13]} 21. Rd4 {[%clk 0:01:44]}  Qe6 {[%clk 0:01:08]} 22. Rd2 {[%clk 0:01:42]}  Rfe8 {[%clk 0:01:01]} 23. a5 {[%clk 0:01:26]}  Qf6 {[%clk 0:00:46]} 24. Rd4 {[%clk 0:01:17]}  Qe6 {[%clk 0:00:47]} 25. Rdd1 {[%clk 0:01:11]}  Qf6 {[%clk 0:00:47]} 26. a6 {[%clk 0:01:11]}  Ba8 {[%clk 0:00:46]} 27. Rd4 {[%clk 0:01:10]}  Qe6 {[%clk 0:00:47]} 28. Qd2 {[%clk 0:00:47]}  Bxd4 {[%clk 0:00:43]} 29. exd4 {[%clk 0:00:48]}  f6 {[%clk 0:00:34]} 30. Qh6 {[%clk 0:00:45]}  Qf7 {[%clk 0:00:25]} 31. h4 {[%clk 0:00:45]}  Qh7 {[%clk 0:00:25]} 32. Qf4 {[%clk 0:00:40]}  Re6 {[%clk 0:00:14]} 33. Kh2 {[%clk 0:00:38]}  Rde8 {[%clk 0:00:12]} 34. Rg1 {[%clk 0:00:36]}  Rf8 {[%clk 0:00:11]} 35. Bd1 {[%clk 0:00:33]}  Qd7 {[%clk 0:00:11]} 36. Qh6 {[%clk 0:00:32]}  Qg7 {[%clk 0:00:11]} 37. Qd2 {[%clk 0:00:23]}  Rfe8 {[%clk 0:00:12]} 38. Bf4 {[%clk 0:00:21]}  Qh7 {[%clk 0:00:12]} 39. g3 {[%clk 0:00:09]}  Re4 {[%clk 0:00:12]} 40. Be3 {[%clk 0:00:06]}  Qd7 {[%clk 0:00:06]} 41. Ba4 {[%clk 0:00:04]}  R4e6 {[%clk 0:00:05]} 42. Kg2 {[%clk 0:00:04]}  f5 {[%clk 0:00:05]} 43. Rf1 {[%clk 0:00:02]}  Qf7 {[%clk 0:00:05]} 44. Qe2 {[%clk 0:00:02]}  Qe7 {[%clk 0:00:06]} 45. Qf3 {[%clk 0:00:02]}  Qf6 {[%clk 0:00:06]} 46. Bc2 {[%clk 0:00:02]}  Rf8 {[%clk 0:00:06]} 47. Bh6 {[%clk 0:00:02]}  Rfe8 {[%clk 0:00:06]} 48. Bg5 {[%clk 0:00:02]}  Qf7 {[%clk 0:00:07]} 49. Bf4 {[%clk 0:00:02]}  Re2 {[%clk 0:00:05]} 50. Bd1 {[%clk 0:00:02]}  R2e6 {[%clk 0:00:06]} 51. Ba4 {[%clk 0:00:01]}  Re1 {[%clk 0:00:06]} 52. Kg1 {[%clk 0:00:01]}  Qe6 {[%clk 0:00:03]} 53. Be5 {[%clk 0:00:01]}  Rxe5 {[%clk 0:00:02]} 54. dxe5 {[%clk 0:00:02]}  Qxe5 {[%clk 0:00:03]} 55. Bc2 {[%clk 0:00:01]}  Kf7 {[%clk 0:00:03]} 56. Rd1 {[%clk 0:00:01]}  d4 {[%clk 0:00:03]} 57. cxd4 {[%clk 0:00:01]}  Bxf3 {[%clk 0:00:03]} 58. dxe5 {[%clk 0:00:02]}  Bxd1 {[%clk 0:00:03]} 59. Bxd1 {[%clk 0:00:03]}  Rxe5 {[%clk 0:00:03]} 60. Kf1 {[%clk 0:00:04]}  Rxb5 {[%clk 0:00:04]} 61. Be2 {[%clk 0:00:05]}  Rb4 {[%clk 0:00:04]} 62. Ke1 {[%clk 0:00:05]}  Kf6 {[%clk 0:00:05]} 63. Kd2 {[%clk 0:00:06]}  Ke5 {[%clk 0:00:05]} 64. Kc3 {[%clk 0:00:06]}  Rb3+ {[%clk 0:00:06]} 65. Kxc4 {[%clk 0:00:06]}  Rb2 {[%clk 0:00:06]} 66. Kd3 {[%clk 0:00:07]}  Ra2 {[%clk 0:00:07]} 67. Ke3 {[%clk 0:00:07]}  Ra3+ {[%clk 0:00:07]} 68. Bd3 {[%clk 0:00:07]}  b5 {[%clk 0:00:07]} 69. Kd2 {[%clk 0:00:08]}  b4 {[%clk 0:00:08]} 70. Bc4 {[%clk 0:00:08]}  Kd4 {[%clk 0:00:09]} 71. Bf7 {[%clk 0:00:08]}  Rxa6 {[%clk 0:00:09]} 72. Kc2 {[%clk 0:00:09]}  Rf6 {[%clk 0:00:06]} 73. Be8 {[%clk 0:00:08]}  a5 {[%clk 0:00:06]} 74. Kb3 {[%clk 0:00:08]}  f4 {[%clk 0:00:06]} 75. gxf4 {[%clk 0:00:09]}  Rxf4 {[%clk 0:00:07]} 76. Bxg6 {[%clk 0:00:09]}  Rxh4 {[%clk 0:00:07]} 77. Ka4 {[%clk 0:00:10]}  Rh1 {[%clk 0:00:07]} 78. Bf7 {[%clk 0:00:09]}  Kc5 {[%clk 0:00:07]} 79. f4 {[%clk 0:00:08]}  Ra1+ {[%clk 0:00:07]} 80. Kb3 {[%clk 0:00:09]}  Rf1 {[%clk 0:00:07]} 81. Bxh5 {[%clk 0:00:08]}  Rxf4 {[%clk 0:00:08]} 82. Ka4 {[%clk 0:00:08]}  Rh4 {[%clk 0:00:08]} 83. Bf3 {[%clk 0:00:08]}  Rh2 {[%clk 0:00:09]} 84. Bd1 {[%clk 0:00:05]}  Ra2+ {[%clk 0:00:08]} 85. Kb3 {[%clk 0:00:06]}  Ra1 {[%clk 0:00:08]} 86. Bc2 {[%clk 0:00:05]}  Ra3+ {[%clk 0:00:06]} 87. Kb2 {[%clk 0:00:06]}  Rg3 {[%clk 0:00:04]} 88. Ba4 {[%clk 0:00:06]}  Kc4 {[%clk 0:00:04]} 89. Bc6 {[%clk 0:00:03]}  Re3 {[%clk 0:00:03]} 90. Bb7 {[%clk 0:00:02]}  Re2+ {[%clk 0:00:03]} 91. Kc1 {[%clk 0:00:02]}  Kc3 {[%clk 0:00:03]} 92. Kd1 {[%clk 0:00:02]}  Rh2 {[%clk 0:00:04]} 93. Kc1 {[%clk 0:00:01]}  a4 {[%clk 0:00:02]} 94. Kb1 {[%clk 0:00:01]}  b3 {[%clk 0:00:02]} 0-1


[Site "https://www.chess.com"]

[Event "Titled Tuesday Blitz March 07 Late 2023"]
[White "Caruana, Fabiano"]
[Black "Fier, Alexandr"]
[WhiteFideId "2020009"]
[BlackFideId "2107139"]
[WhiteElo "2818"]
[BlackElo "2610"]
[Result "1/2-1/2"]
[Round "06"]
[TimeControl "180+2"]
[Date "2023.03.07"]
[WhiteClock "0:00:22"]
[BlackClock "0:00:20"]

1. c4 {[%clk 0:03:00]}  c5 {[%clk 0:02:59]} 2. Nc3 {[%clk 0:03:00]}  Nc6 {[%clk 0:03:00]} 3. Nf3 {[%clk 0:03:00]}  Nf6 {[%clk 0:02:59]} 4. e3 {[%clk 0:03:01]}  g6 {[%clk 0:02:58]} 5. d4 {[%clk 0:03:01]}  cxd4 {[%clk 0:02:58]} 6. exd4 {[%clk 0:03:01]}  d5 {[%clk 0:02:59]} 7. cxd5 {[%clk 0:02:57]}  Nxd5 {[%clk 0:03:00]} 8. Bc4 {[%clk 0:02:55]}  Nb6 {[%clk 0:02:59]} 9. Bb3 {[%clk 0:02:53]}  Bg7 {[%clk 0:02:59]} 10. d5 {[%clk 0:02:51]}  Na5 {[%clk 0:02:58]} 11. O-O {[%clk 0:02:50]}  O-O {[%clk 0:02:59]} 12. Re1 {[%clk 0:02:46]}  Bg4 {[%clk 0:02:58]} 13. Bg5 {[%clk 0:02:44]}  Re8 {[%clk 0:02:55]} 14. h3 {[%clk 0:02:36]}  Bxf3 {[%clk 0:02:54]} 15. Qxf3 {[%clk 0:02:36]}  Nxb3 {[%clk 0:02:53]} 16. axb3 {[%clk 0:02:37]}  Bxc3 {[%clk 0:02:53]} 17. bxc3 {[%clk 0:02:37]}  Qxd5 {[%clk 0:02:53]} 18. Qg3 {[%clk 0:02:24]}  Qxb3 {[%clk 0:02:40]} 19. Rab1 {[%clk 0:02:02]}  Qa2 {[%clk 0:02:37]} 20. Rbd1 {[%clk 0:01:55]}  f6 {[%clk 0:02:32]} 21. Bh6 {[%clk 0:01:55]}  Qf7 {[%clk 0:02:30]} 22. h4 {[%clk 0:01:49]}  Rac8 {[%clk 0:02:18]} 23. Ra1 {[%clk 0:01:44]}  Nd5 {[%clk 0:02:15]} 24. Rxa7 {[%clk 0:01:36]}  Rxc3 {[%clk 0:02:13]} 25. Qg4 {[%clk 0:01:35]}  e5 {[%clk 0:02:06]} 26. Rd1 {[%clk 0:01:24]}  Rc7 {[%clk 0:02:00]} 27. Ra5 {[%clk 0:01:21]}  Nc3 {[%clk 0:01:58]} 28. Rd6 {[%clk 0:01:16]}  Rc4 {[%clk 0:01:48]} 29. Qf3 {[%clk 0:01:12]}  Ne4 {[%clk 0:01:33]} 30. Rd1 {[%clk 0:01:12]}  Nc5 {[%clk 0:01:20]} 31. Be3 {[%clk 0:01:04]}  Ne6 {[%clk 0:01:18]} 32. Rb5 {[%clk 0:01:01]}  Re7 {[%clk 0:01:09]} 33. h5 {[%clk 0:00:58]}  gxh5 {[%clk 0:01:09]} 34. Rb6 {[%clk 0:00:52]}  Kg7 {[%clk 0:01:06]} 35. Rdd6 {[%clk 0:00:51]}  Rc6 {[%clk 0:01:02]} 36. Rbxc6 {[%clk 0:00:48]}  bxc6 {[%clk 0:01:03]} 37. Qxc6 {[%clk 0:00:48]}  Qe8 {[%clk 0:00:50]} 38. Qc4 {[%clk 0:00:45]}  Nf8 {[%clk 0:00:45]} 39. Qh4 {[%clk 0:00:33]}  Qg6 {[%clk 0:00:42]} 40. Ra6 {[%clk 0:00:29]}  Rf7 {[%clk 0:00:41]} 41. Bc5 {[%clk 0:00:26]}  Qg4 {[%clk 0:00:38]} 42. Ra4 {[%clk 0:00:21]}  Qxh4 {[%clk 0:00:37]} 43. Rxh4 {[%clk 0:00:22]}  Kg6 {[%clk 0:00:37]} 44. Rh3 {[%clk 0:00:22]}  Ne6 {[%clk 0:00:37]} 45. Rg3+ {[%clk 0:00:22]}  Kf5 {[%clk 0:00:37]} 46. Be3 {[%clk 0:00:23]}  Nf4 {[%clk 0:00:37]} 47. Rf3 {[%clk 0:00:21]}  Rd7 {[%clk 0:00:29]} 48. Bxf4 {[%clk 0:00:22]}  exf4 {[%clk 0:00:30]} 49. Ra3 {[%clk 0:00:22]}  Kg5 {[%clk 0:00:30]} 50. f3 {[%clk 0:00:21]}  Rd2 {[%clk 0:00:29]} 51. Kh2 {[%clk 0:00:22]}  Rd1 {[%clk 0:00:26]} 52. Ra5+ {[%clk 0:00:22]}  Kg6 {[%clk 0:00:25]} 53. Ra4 {[%clk 0:00:22]}  Kg5 {[%clk 0:00:25]} 54. Ra5+ {[%clk 0:00:23]}  f5 {[%clk 0:00:26]} 55. Ra7 {[%clk 0:00:22]}  h6 {[%clk 0:00:26]} 56. Rg7+ {[%clk 0:00:23]}  Kf6 {[%clk 0:00:26]} 57. Rg8 {[%clk 0:00:23]}  h4 {[%clk 0:00:26]} 58. Rh8 {[%clk 0:00:23]}  Kg7 {[%clk 0:00:25]} 59. Ra8 {[%clk 0:00:23]}  h3 {[%clk 0:00:24]} 60. Ra4 {[%clk 0:00:22]}  hxg2 {[%clk 0:00:22]} 61. Kxg2 {[%clk 0:00:23]}  Kg6 {[%clk 0:00:23]} 62. Rxf4 {[%clk 0:00:23]}  Kg5 {[%clk 0:00:23]} 63. Ra4 {[%clk 0:00:23]}  h5 {[%clk 0:00:23]} 64. Kg3 {[%clk 0:00:23]}  Rg1+ {[%clk 0:00:22]} 65. Kf2 {[%clk 0:00:23]}  Rb1 {[%clk 0:00:22]} 66. Kg3 {[%clk 0:00:24]}  Rg1+ {[%clk 0:00:20]} 67. Kf2 {[%clk 0:00:24]}  Rh1 {[%clk 0:00:21]} 68. Kg2 {[%clk 0:00:24]}  Rh4 {[%clk 0:00:21]} 69. Ra8 {[%clk 0:00:23]}  Rc4 {[%clk 0:00:21]} 70. Ra2 {[%clk 0:00:21]}  h4 {[%clk 0:00:20]} 71. Rd2 {[%clk 0:00:21]}  Kf4 {[%clk 0:00:21]} 72. Ra2 {[%clk 0:00:20]}  h3+ {[%clk 0:00:21]} 73. Kxh3 {[%clk 0:00:20]}  Kxf3 {[%clk 0:00:21]} 74. Ra3+ {[%clk 0:00:20]}  Kf2 {[%clk 0:00:19]} 75. Ra2+ {[%clk 0:00:21]}  Ke3 {[%clk 0:00:18]} 76. Ra3+ {[%clk 0:00:21]}  Kf4 {[%clk 0:00:17]} 77. Kg2 {[%clk 0:00:19]}  Rc2+ {[%clk 0:00:17]} 78. Kf1 {[%clk 0:00:20]}  Kg4 {[%clk 0:00:17]} 79. Rb3 {[%clk 0:00:20]}  f4 {[%clk 0:00:17]} 80. Ra3 {[%clk 0:00:20]}  f3 {[%clk 0:00:17]} 81. Ra8 {[%clk 0:00:20]}  Kg3 {[%clk 0:00:18]} 82. Rg8+ {[%clk 0:00:19]}  Kf4 {[%clk 0:00:18]} 83. Rf8+ {[%clk 0:00:20]}  Kg3 {[%clk 0:00:19]} 84. Rg8+ {[%clk 0:00:21]}  Kf4 {[%clk 0:00:19]} 85. Rf8+ {[%clk 0:00:21]}  Kg3 {[%clk 0:00:20]} 86. Rg8+ {[%clk 0:00:22]} 1/2-1/2


[Site "https://www.chess.com"]

[Event "Titled Tuesday Blitz March 07 Late 2023"]
[White "Deac, Bogdan-Daniel"]
[Black "Hamidi, Amir Mohammad"]
[WhiteFideId "1226380"]
[BlackFideId "12563285"]
[WhiteElo "2649"]
[BlackElo "2228"]
[Result "1-0"]
[Round "06"]
[TimeControl "180+2"]
[Date "2023.03.07"]
[WhiteClock "0:00:20"]
[BlackClock "0:00:34"]

1. b3 {[%clk 0:03:00]}  e5 {[%clk 0:02:59]} 2. Bb2 {[%clk 0:03:01]}  Nc6 {[%clk 0:02:59]} 3. Nf3 {[%clk 0:03:02]}  e4 {[%clk 0:02:59]} 4. Nd4 {[%clk 0:02:58]}  Nxd4 {[%clk 0:02:59]} 5. Bxd4 {[%clk 0:02:56]}  d5 {[%clk 0:03:00]} 6. e3 {[%clk 0:02:56]}  Ne7 {[%clk 0:02:59]} 7. Bb2 {[%clk 0:02:50]}  Nf5 {[%clk 0:02:57]} 8. d3 {[%clk 0:02:48]}  Qg5 {[%clk 0:02:52]} 9. dxe4 {[%clk 0:02:44]}  dxe4 {[%clk 0:02:53]} 10. Qd5 {[%clk 0:02:42]}  Be7 {[%clk 0:02:41]} 11. Qxe4 {[%clk 0:02:38]}  O-O {[%clk 0:02:41]} 12. Bd3 {[%clk 0:02:32]}  Bd7 {[%clk 0:02:24]} 13. Nd2 {[%clk 0:01:57]}  Rae8 {[%clk 0:02:19]} 14. Nf3 {[%clk 0:01:31]}  Qh6 {[%clk 0:02:16]} 15. O-O-O {[%clk 0:01:21]}  Bd6 {[%clk 0:02:06]} 16. Qxb7 {[%clk 0:01:08]}  a5 {[%clk 0:02:04]} 17. a4 {[%clk 0:01:03]}  Rb8 {[%clk 0:01:38]} 18. Qa6 {[%clk 0:01:02]}  Be6 {[%clk 0:01:23]} 19. Qxa5 {[%clk 0:00:49]}  Be7 {[%clk 0:01:09]} 20. Bxf5 {[%clk 0:00:48]}  Ra8 {[%clk 0:01:07]} 21. Qe5 {[%clk 0:00:35]}  Bf6 {[%clk 0:01:03]} 22. Qe4 {[%clk 0:00:33]}  Bxb2+ {[%clk 0:01:03]} 23. Kxb2 {[%clk 0:00:34]}  Qf6+ {[%clk 0:01:03]} 24. Nd4 {[%clk 0:00:26]}  c5 {[%clk 0:01:04]} 25. Bxe6 {[%clk 0:00:26]}  cxd4 {[%clk 0:01:03]} 26. Bd5 {[%clk 0:00:25]}  dxe3+ {[%clk 0:01:03]} 27. Qd4 {[%clk 0:00:25]}  e2 {[%clk 0:00:56]} 28. Qxf6 {[%clk 0:00:18]}  exd1=Q {[%clk 0:00:33]} 29. Rxd1 {[%clk 0:00:19]}  gxf6 {[%clk 0:00:33]} 30. Bxa8 {[%clk 0:00:19]}  Rxa8 {[%clk 0:00:34]} 31. c4 {[%clk 0:00:20]} 1-0


[Site "https://www.chess.com"]

[Event "Titled Tuesday Blitz March 07 Late 2023"]
[White "Lenderman, Aleksandr"]
[Black "Costachi, Mihnea"]
[WhiteFideId "2021285"]
[BlackFideId "1217518"]
[WhiteElo "2607"]
[BlackElo "2456"]
[Result "1-0"]
[Round "06"]
[TimeControl "180+2"]
[Date "2023.03.07"]
[WhiteClock "0:00:21"]
[BlackClock "0:00:01"]

1. Nf3 {[%clk 0:02:52]}  Nf6 {[%clk 0:02:59]} 2. c4 {[%clk 0:02:52]}  g6 {[%clk 0:03:00]} 3. Nc3 {[%clk 0:02:52]}  Bg7 {[%clk 0:03:01]} 4. e4 {[%clk 0:02:52]}  d6 {[%clk 0:03:01]} 5. d4 {[%clk 0:02:52]}  O-O {[%clk 0:03:01]} 6. Be2 {[%clk 0:02:53]}  Na6 {[%clk 0:03:02]} 7. O-O {[%clk 0:02:53]}  e5 {[%clk 0:03:02]} 8. Be3 {[%clk 0:02:51]}  c6 {[%clk 0:03:03]} 9. d5 {[%clk 0:02:49]}  Ng4 {[%clk 0:03:03]} 10. Bg5 {[%clk 0:02:49]}  f6 {[%clk 0:03:03]} 11. Bc1 {[%clk 0:02:47]}  c5 {[%clk 0:02:58]} 12. a3 {[%clk 0:02:46]}  Qe7 {[%clk 0:02:55]} 13. Rb1 {[%clk 0:02:46]}  b6 {[%clk 0:02:56]} 14. b4 {[%clk 0:02:46]}  Nh6 {[%clk 0:02:53]} 15. Be3 {[%clk 0:02:45]}  Nf7 {[%clk 0:02:49]} 16. Qc1 {[%clk 0:02:38]}  f5 {[%clk 0:02:43]} 17. Ne1 {[%clk 0:02:18]}  f4 {[%clk 0:02:41]} 18. Bd2 {[%clk 0:02:18]}  g5 {[%clk 0:02:41]} 19. Qd1 {[%clk 0:02:17]}  Nh6 {[%clk 0:02:35]} 20. f3 {[%clk 0:02:18]}  Rf7 {[%clk 0:02:21]} 21. Nd3 {[%clk 0:02:17]}  Bf8 {[%clk 0:02:21]} 22. Nf2 {[%clk 0:02:17]}  Rg7 {[%clk 0:02:17]} 23. g4 {[%clk 0:02:03]}  fxg3 {[%clk 0:02:14]} 24. hxg3 {[%clk 0:02:04]}  Bd7 {[%clk 0:01:53]} 25. Kg2 {[%clk 0:01:59]}  Rg6 {[%clk 0:01:41]} 26. Rh1 {[%clk 0:01:57]}  g4 {[%clk 0:01:24]} 27. fxg4 {[%clk 0:01:53]}  Bg7 {[%clk 0:01:18]} 28. g5 {[%clk 0:01:50]}  Rxg5 {[%clk 0:00:58]} 29. Bxg5 {[%clk 0:01:51]}  Qxg5 {[%clk 0:00:58]} 30. Qc1 {[%clk 0:01:46]}  Qf6 {[%clk 0:00:47]} 31. Qe3 {[%clk 0:01:42]}  Rf8 {[%clk 0:00:45]} 32. b5 {[%clk 0:01:37]}  Nc7 {[%clk 0:00:44]} 33. Rbf1 {[%clk 0:01:36]}  Nf7 {[%clk 0:00:33]} 34. Bg4 {[%clk 0:01:30]}  Bxg4 {[%clk 0:00:27]} 35. Nxg4 {[%clk 0:01:31]}  Qg6 {[%clk 0:00:28]} 36. Qe2 {[%clk 0:01:28]}  Ne8 {[%clk 0:00:25]} 37. Rf5 {[%clk 0:01:24]}  Nh6 {[%clk 0:00:19]} 38. Nxh6+ {[%clk 0:01:17]}  Bxh6 {[%clk 0:00:20]} 39. Qh5 {[%clk 0:01:11]}  Qxh5 {[%clk 0:00:09]} 40. Rhxh5 {[%clk 0:00:58]}  Bd2 {[%clk 0:00:09]} 41. Rxf8+ {[%clk 0:00:57]}  Kxf8 {[%clk 0:00:10]} 42. Ne2 {[%clk 0:00:55]}  Nf6 {[%clk 0:00:11]} 43. Rf5 {[%clk 0:00:55]}  Kg7 {[%clk 0:00:10]} 44. Kf3 {[%clk 0:00:56]}  Kg6 {[%clk 0:00:10]} 45. g4 {[%clk 0:00:55]}  Bg5 {[%clk 0:00:03]} 46. Ng3 {[%clk 0:00:52]}  h6 {[%clk 0:00:03]} 47. a4 {[%clk 0:00:48]}  Bh4 {[%clk 0:00:03]} 48. Nh5 {[%clk 0:00:48]}  Bg5 {[%clk 0:00:04]} 49. Nxf6 {[%clk 0:00:43]}  Bxf6 {[%clk 0:00:04]} 50. Ke2 {[%clk 0:00:43]}  Kg7 {[%clk 0:00:04]} 51. Kd3 {[%clk 0:00:42]}  Kg6 {[%clk 0:00:05]} 52. Kc2 {[%clk 0:00:42]}  Kg7 {[%clk 0:00:05]} 53. Kb3 {[%clk 0:00:43]}  Kg6 {[%clk 0:00:06]} 54. a5 {[%clk 0:00:43]}  Kg7 {[%clk 0:00:06]} 55. Rf2 {[%clk 0:00:40]}  bxa5 {[%clk 0:00:04]} 56. b6 {[%clk 0:00:29]}  axb6 {[%clk 0:00:05]} 57. Ka4 {[%clk 0:00:30]}  Kg6 {[%clk 0:00:03]} 58. Kb5 {[%clk 0:00:30]}  Be7 {[%clk 0:00:01]} 59. Rf5 {[%clk 0:00:21]} 1-0


[Site "https://www.chess.com"]